fUST/lending_fUST_20240314
["ID","MTS","AMOUNT","RATE_DAILY","PERIOD"]
[318831359,1710409848540,-501.92108587,0.00019698,2]
[318831360,1710409848549,-500.0,0.00019698,2]
[318831361,1710409848558,-500.0,0.00019698,2]
[318831362,1710409848567,-228.58684082,0.00019698,2]
[318831363,1710409848576,-287.7092279,0.00019698,2]
[318831364,1710409848585,-500.0,0.00019698,2]
[318831365,1710409848594,-500.0,0.00019698,2]
[318831366,1710409848603,-500.0,0.00019698,2]
[318831367,1710409848612,-500.0,0.00019698,2]
[318831368,1710409848622,-500.0,0.00019698,2]
[318831369,1710409848631,-501.45807816,0.00019698,2]
[318831370,1710409848640,-500.0,0.00019698,2]
[318831371,1710409848649,-500.0,0.00019698,2]
[318831372,1710409848658,-500.0,0.00019698,2]
[318831373,1710409848667,-500.0,0.00019698,2]
[318831374,1710409848676,-500.0,0.00019698,2]
[318831375,1710409848686,-501.52400052,0.00019698,2]
[318831376,1710409848695,-500.0,0.00019698,2]
[318831377,1710409848704,-500.0,0.00019698,2]
[318831378,1710409848713,-500.0,0.00019698,2]
[318831379,1710409848722,-500.0,0.00019698,2]
[318831380,1710409848732,-500.0,0.00019698,2]
[318831381,1710409848741,-501.48517742,0.00019698,2]
[318831382,1710409848750,-271.62717223,0.00019698,2]
[318831383,1710409848760,-472.98115859,0.00019698,2]
[318831384,1710409848769,-500.0,0.00019698,2]
[318831385,1710409848779,-500.0,0.00019698,2]
[318831386,1710409848788,-500.0,0.00019698,2]
[318831387,1710409848797,-500.0,0.00019698,2]
[318831388,1710409848806,-500.65523788,0.00019698,2]
[318831389,1710409848815,-500.0,0.00019698,2]
[318831390,1710409848824,-500.0,0.00019698,2]
[318831391,1710409848833,-500.0,0.00019698,2]
[318831392,1710409848842,-500.0,0.00019698,2]
[318831393,1710409848851,-500.0,0.00019698,2]
[318831394,1710409848860,-501.21128163,0.00019698,2]
[318831395,1710409848869,-500.0,0.00019698,2]
[318831396,1710409848878,-500.0,0.00019698,2]
[318831397,1710409848887,-187.08897146,0.00019698,2]
[318831398,1710409848897,-500.0,0.00019698,2]
[318831399,1710409848906,-500.0,0.00019698,2]
[318831400,1710409848915,-500.0,0.00019698,2]
[318831401,1710409848924,-500.0,0.00019698,2]
[318831402,1710409848934,-500.0,0.00019698,2]
[318831403,1710409848943,-500.0,0.00019698,2]
[318831404,1710409848953,-500.0,0.00019698,2]
[318831405,1710409848962,-500.0,0.00019698,2]
[318831406,1710409848971,-557.78320873,0.00019698,2]
[318831407,1710409848981,-1955.86446858,0.00019698,2]
[318831408,1710409848990,-236.98337383,0.00019698,2]
[318831409,1710409849000,-155.16447434,0.00019699,2]
[318831410,1710409849009,-155.16447434,0.00019699,2]
[318831411,1710409849018,-2072.4846483,0.00019699,2]
[318831412,1710409849028,-2223.67,0.00019699,2]
[318831413,1710409849038,-1292.25,0.00019699,2]
[318831414,1710409849048,-500.0,0.00019699,2]
[318831415,1710409849062,-500.0,0.00019699,2]
[318831416,1710409849072,-500.0,0.00019699,2]
[318831417,1710409849082,-500.0,0.00019699,2]
[318831418,1710409849091,-325.7119069,0.0001971,2]
[318831419,1710409849100,-692.49706071,0.0001971,2]
[318831420,1710409849109,-269.74800795,0.0001971,2]
[318831421,1710409849118,-301.63340325,0.0001971,2]
[318831422,1710409849127,-430.64411559,0.0001971,2]
[318831423,1710409849136,-2223.67,0.0001971,2]
[318831424,1710409849146,-500.0,0.0001971,2]
[318831425,1710409849156,-500.0,0.0001971,2]
[318831426,1710409849166,-1292.25,0.0001971,2]
[318831427,1710409849174,-499.42833525,0.0001971,2]
[318831428,1710409849243,-501.45994311,0.0001971,2]
[318831429,1710409849253,-500.0,0.0001971,2]
[318831430,1710409849262,-500.0,0.0001971,2]
[318831431,1710409849272,-500.0,0.0001971,2]
[318831432,1710409849281,-500.0,0.0001971,2]
[318831433,1710409849290,-500.0,0.0001971,2]
[318831434,1710409849299,-500.0,0.0001971,2]
[318831435,1710409849309,-500.0,0.0001971,2]
[318831436,1710409849320,-500.0,0.0001971,2]
[318831437,1710409849330,-500.0,0.0001971,2]
[318831438,1710409849340,-500.0,0.0001971,2]
[318831439,1710409849350,-500.0,0.0001971,2]
[318831440,1710409849360,-500.0,0.0001971,2]
[318831441,1710409849369,-579.1454916,0.0001971,2]
[318831442,1710409849378,-500.0,0.0001971,2]
[318831443,1710409849388,-418.38,0.0001971,2]
[318831444,1710409849397,-500.0,0.0001971,2]
[318831445,1710409849406,-500.0,0.0001971,2]
[318831446,1710409849416,-67246.27189108,0.00019711,2]
[318831447,1710409849425,-500.0,0.00019711,2]
[318831448,1710409849436,-500.0,0.00019711,2]
[318831449,1710409849446,-500.0,0.00019711,2]
[318831450,1710409849456,-500.0,0.00019711,2]
[318831451,1710409849465,-500.0,0.00019711,2]
[318831452,1710409849475,-500.0,0.00019711,2]
[318831453,1710409849485,-636.08149252,0.00019711,2]
[318831454,1710409849495,-2223.67,0.00019748,2]
[318831455,1710409849505,-2223.67,0.00019748,2]
[318831456,1710409849515,-2223.67,0.00019748,2]
[318831457,1710409849524,-2223.67,0.00019748,2]
[318831458,1710409849533,-2223.67,0.00019748,2]
[318831459,1710409849543,-2223.67,0.00019748,2]
[318831460,1710409849552,-2223.67,0.00019748,2]
[318831461,1710409849562,-2223.67,0.00019748,2]
[318831462,1710409849572,-2223.67,0.00019748,2]
[318831463,1710409849581,-2223.67,0.00019748,2]
[318831464,1710409849590,-2223.67,0.00019748,2]
[318831465,1710409849599,-2223.67,0.00019748,2]
[318831466,1710409849608,-2223.67,0.00019748,2]
[318831467,1710409849619,-2223.67,0.00019748,2]
[318831468,1710409849629,-2223.67931092,0.00019748,2]
[318831469,1710409849639,-583.82886927,0.00019748,2]
[318831470,1710409849648,-1292.25,0.00019748,2]
[318831471,1710409849658,-1292.25,0.00019748,2]
[318831472,1710409849666,-1292.25,0.00019748,2]
[318831473,1710409849675,-1292.25,0.00019748,2]
[318831474,1710409849685,-1292.25,0.00019748,2]
[318831475,1710409849694,-1292.25,0.00019748,2]
[318831476,1710409849703,-1292.25,0.00019748,2]
[318831477,1710409849712,-1292.25,0.00019748,2]
[318831478,1710409849721,-1292.25,0.00019748,2]
[318831479,1710409849732,-1292.25,0.00019748,2]
[318831480,1710409849742,-1292.25,0.00019748,2]
[318831481,1710409849751,-1292.25,0.00019748,2]
[318831482,1710409849760,-1292.25,0.00019748,2]
[318831483,1710409849770,-1292.25,0.00019748,2]
[318831484,1710409849779,-1292.26833506,0.00019748,2]
[318831485,1710409849788,-151.0,0.00019748,2]
[318831486,1710409849798,-503.50838048,0.00019748,2]
[318831487,1710409849807,-500.0,0.00019748,2]
[318831488,1710409849816,-500.0,0.00019748,2]
[318831489,1710409849825,-500.0,0.00019748,2]
[318831490,1710409849834,-500.0,0.00019748,2]
[318831491,1710409849843,-500.0,0.00019748,2]
[318831492,1710409849853,-290.66447317,0.00019748,2]
[318831493,1710409849862,-500.0,0.00019748,2]
[318831494,1710409849871,-500.0,0.00019748,2]
[318831495,1710409849880,-390.6,0.00019748,2]
[318831496,1710409849890,-500.0,0.00019748,2]
[318831497,1710409849899,-500.0,0.00019748,2]
[318831498,1710409849908,-500.0,0.00019748,2]
[318831499,1710409849917,-500.0,0.00019748,2]
[318831500,1710409849927,-500.0,0.00019748,2]
[318831501,1710409849938,-500.0,0.00019748,2]
[318831502,1710409849947,-305.38107473,0.00019748,2]
[318831503,1710409849956,-500.0,0.00019748,2]
[318831504,1710409849966,-500.0,0.00019748,2]
[318831505,1710409849975,-500.0,0.00019748,2]
[318831506,1710409849984,-500.0,0.00019748,2]
[318831507,1710409849994,-433.58532916,0.00019748,2]
[318831508,1710409850003,-151.0,0.00019748,2]
[318831509,1710409850012,-530.52034111,0.00019748,2]
[318831510,1710409850021,-151.0,0.00019748,2]
[318831511,1710409850031,-151.0,0.00019748,2]
[318831512,1710409850040,-500.0,0.00019748,2]
[318831513,1710409850050,-500.0,0.00019748,2]
[318831514,1710409850059,-245.0,0.00019748,2]
[318831515,1710409850068,-151.0,0.00019749,2]
[318831516,1710409850078,-151.0,0.00019749,2]
[318831517,1710409850087,-151.0,0.00019749,2]
[318831518,1710409850096,-202.569021,0.00019749,2]
[318831519,1710409850105,-151.725525,0.00019749,2]
[318831520,1710409850114,-152.387943,0.00019749,2]
[318831521,1710409850123,-151.0,0.00019749,2]
[318831522,1710409850133,-151.0,0.00019749,2]
[318831523,1710409850142,-151.0,0.00019749,2]
[318831524,1710409850151,-151.0,0.00019749,2]
[318831525,1710409850160,-151.0,0.00019749,2]
[318831526,1710409850170,-151.0,0.00019749,2]
[318831527,1710409850178,-151.0,0.00019749,2]
[318831528,1710409850187,-151.0,0.00019749,2]
[318831529,1710409850196,-151.0,0.00019749,2]
[318831530,1710409850206,-275.093639,0.00019749,2]
[318831531,1710409850216,-145095.16930293,0.00019749,60]
[318831532,1710409850237,-89614.61124401,0.00019749,60]
[318831539,1710410054938,6130.8946228,0.000125,2]
[318831540,1710410074976,24866.20766073,0.00025,120]
[318831541,1710410088106,2072.4846483,0.000125,2]
[318831542,1710410099402,155.16447434,0.000125,2]
[318831543,1710410104247,2072.4846483,0.000125,2]
[318831544,1710410111416,159.10800316,0.000125,2]
[318831545,1710410126141,1429.08458745,0.000125,2]
[318831546,1710410570989,-4000000.0,0.00019732,60]
[318831674,1710411039221,-3094.46300252,0.00017876,2]
[318831835,1710411040574,-336.26989748,0.00017876,2]
[318831838,1710411040587,-338.7091611,0.00017877,2]
[318831840,1710411040596,-1847.43075425,0.00017877,2]
[318831844,1710411040632,-311.20545213,0.00017877,2]
[318831921,1710411043559,-440.99639116,0.00017877,2]
[318831922,1710411043573,-397.02483606,0.00017878,2]
[318831923,1710411043583,-262.342251,0.00018476,2]
[318831924,1710411043592,-707.13997265,0.000188,2]
[318831925,1710411043601,-91.60334315,0.0001896,2]
[318831926,1710411043614,-3853.43064229,0.0001896,2]
[318831927,1710411043623,-1000.0,0.00018999,9]
[318831928,1710411043633,-166.666666,0.00019178,2]
[318831929,1710411043642,-1000.0,0.00019523,2]
[318831930,1710411043653,-260.46008833,0.00019544,2]
[318831931,1710411043662,-5873.01830669,0.00019549,2]
[318831932,1710411043672,-1000.0,0.00019579,2]
[318831933,1710411043681,-6262.09989842,0.00019587,2]
[318831934,1710411043690,-633.97699707,0.00019598,2]
[318831935,1710411043700,-1011.88283405,0.00019599,2]
[318831936,1710411043709,-402.0651848,0.000196,2]
[318831937,1710411043718,-166.666666,0.00019627,2]
[318831938,1710411043728,-500.0,0.0001968,2]
[318831939,1710411043738,-500.0,0.00019681,2]
[318831940,1710411043747,-500.0,0.00019681,2]
[318831942,1710411043757,-500.0,0.00019681,2]
[318831944,1710411043766,-248.47787997,0.00019681,2]
[318831945,1710411043776,-500.0,0.00019681,2]
[318831946,1710411043785,-500.0,0.00019681,2]
[318831947,1710411043794,-500.0,0.00019681,2]
[318831948,1710411043804,-273.41215685,0.00019681,2]
[318831949,1710411043813,-189.4390755,0.00019681,2]
[318831950,1710411043923,-500.0,0.00019681,2]
[318831951,1710411043933,-500.0,0.00019681,2]
[318831952,1710411043942,-500.0,0.00019681,2]
[318831953,1710411043951,-500.0,0.00019681,2]
[318831954,1710411043960,-500.0,0.00019681,2]
[318831955,1710411043969,-500.0,0.00019681,2]
[318831956,1710411043979,-500.0,0.00019681,2]
[318831957,1710411043988,-500.0,0.00019681,2]
[318831958,1710411043997,-500.0,0.00019681,2]
[318831959,1710411044007,-500.0,0.00019681,2]
[318831960,1710411044016,-318.60892248,0.00019681,2]
[318831961,1710411044025,-500.0,0.00019681,2]
[318831962,1710411044034,-500.0,0.00019681,2]
[318831963,1710411044044,-476.61694573,0.00019681,2]
[318831964,1710411044053,-500.0,0.00019681,2]
[318831965,1710411044061,-500.0,0.00019681,2]
[318831966,1710411044070,-500.0,0.00019681,2]
[318831967,1710411044080,-500.0,0.00019681,2]
[318831968,1710411044089,-500.0,0.00019681,2]
[318831969,1710411044098,-500.0,0.00019681,2]
[318831970,1710411044108,-500.0,0.00019681,2]
[318831971,1710411044118,-500.0,0.00019681,2]
[318831972,1710411044128,-500.0,0.00019681,2]
[318831973,1710411044138,-237.99689352,0.00019681,2]
[318831974,1710411044148,-500.0,0.00019681,2]
[318831975,1710411044157,-500.0,0.00019681,2]
[318831976,1710411044166,-500.0,0.00019681,2]
[318831977,1710411044176,-500.59066895,0.00019681,2]
[318831978,1710411044186,-500.0,0.00019681,2]
[318831979,1710411044196,-500.0,0.00019681,2]
[318831980,1710411044208,-500.0,0.00019681,2]
[318831981,1710411044218,-500.0,0.00019681,2]
[318831982,1710411044227,-500.0,0.00019681,2]
[318831983,1710411044237,-500.0,0.00019681,2]
[318831984,1710411044246,-500.0,0.00019681,2]
[318831985,1710411044256,-500.0,0.00019682,2]
[318831986,1710411044265,-500.0,0.00019682,2]
[318831987,1710411044276,-500.0,0.00019682,2]
[318831988,1710411044285,-500.0,0.00019682,2]
[318831989,1710411044295,-500.0,0.00019686,2]
[318831990,1710411044304,-500.0,0.00019686,2]
[318831991,1710411044314,-421.06,0.00019686,2]
[318831992,1710411044325,-1825.1004,0.00019686,2]
[318831993,1710411044334,-500.0,0.00019686,2]
[318831994,1710411044344,-323.99073619,0.00019686,2]
[318832014,1710411046767,-176.00926381,0.00019686,2]
[318832015,1710411046776,-500.0,0.00019686,2]
[318832016,1710411046784,-500.0,0.00019686,2]
[318832017,1710411046794,-500.0,0.00019686,2]
[318832018,1710411046805,-288.53148237,0.00019686,2]
[318832019,1710411046814,-500.0,0.00019686,2]
[318832020,1710411046823,-500.0,0.00019686,2]
[318832021,1710411046832,-500.0,0.00019686,2]
[318832022,1710411046842,-500.0,0.00019686,2]
[318832023,1710411046853,-500.0,0.00019686,2]
[318832024,1710411046862,-500.0,0.00019686,2]
[318832025,1710411046871,-500.0,0.00019686,2]
[318832026,1710411046881,-500.0,0.00019686,2]
[318832027,1710411046890,-500.0,0.00019686,2]
[318832028,1710411046899,-500.0,0.00019686,2]
[318832029,1710411046909,-500.0,0.00019686,2]
[318832030,1710411046918,-500.0,0.00019686,2]
[318832031,1710411046928,-500.0,0.00019686,2]
[318832032,1710411046937,-500.0,0.00019686,2]
[318832033,1710411046946,-500.0,0.00019686,2]
[318832034,1710411046956,-500.0,0.00019686,2]
[318832035,1710411046965,-500.0,0.00019686,2]
[318832036,1710411046974,-500.0,0.00019686,2]
[318832037,1710411046983,-500.0,0.00019686,2]
[318832038,1710411046991,-500.0,0.00019686,2]
[318832039,1710411047000,-600.22061781,0.00019686,2]
[318832040,1710411047013,-500.0,0.0001969,2]
[318832041,1710411047023,-500.0,0.0001969,2]
[318832042,1710411047033,-500.0,0.00019694,2]
[318832043,1710411047043,-500.0,0.00019694,2]
[318832044,1710411047053,-500.0,0.00019694,2]
[318832045,1710411047062,-11301.98450831,0.00019695,2]
[318832046,1710411047072,-500.0,0.00019696,2]
[318832047,1710411047081,-267.93350243,0.00019696,2]
[318832048,1710411047090,-500.0,0.00019696,2]
[318832049,1710411047099,-500.0,0.00019696,2]
[318832050,1710411047109,-500.0,0.00019696,2]
[318832051,1710411047118,-454.66312065,0.00019696,2]
[318832052,1710411047127,-500.0,0.00019696,2]
[318832053,1710411047136,-500.0,0.00019697,2]
[318832054,1710411047145,-500.0,0.00019697,2]
[318832055,1710411047154,-500.0,0.00019697,2]
[318832056,1710411047163,-500.0,0.00019697,2]
[318832057,1710411047172,-500.0,0.00019697,2]
[318832058,1710411047181,-500.0,0.00019697,2]
[318832059,1710411047190,-500.0,0.00019697,2]
[318832060,1710411047199,-368.74544277,0.00019697,2]
[318832061,1710411047208,-500.0,0.00019697,2]
[318832062,1710411047217,-498.31344575,0.00019697,2]
[318832063,1710411047227,-500.0,0.00019697,2]
[318832064,1710411047236,-500.0,0.00019697,2]
[318832065,1710411047245,-501.40953444,0.00019697,2]
[318832066,1710411047257,-155.17411374,0.00019699,2]
[318832067,1710411047267,-402.0799186,0.000197,2]
[318832068,1710411047276,-500.0,0.00019726,2]
[318832069,1710411047285,-500.0,0.00019726,2]
[318832070,1710411047294,-218.82294867,0.00019731,2]
[318832071,1710411047303,-500.0,0.00019731,2]
[318832072,1710411047313,-500.0,0.00019731,2]
[318832073,1710411047322,-500.0,0.00019731,2]
[318832074,1710411047331,-500.0,0.00019731,2]
[318832075,1710411047340,-500.0,0.00019731,2]
[318832076,1710411047349,-500.0,0.00019731,2]
[318832077,1710411047359,-500.0,0.00019731,2]
[318832078,1710411047368,-500.0,0.00019731,2]
[318832079,1710411047377,-500.0,0.00019731,2]
[318832080,1710411047386,-500.0,0.00019731,2]
[318832081,1710411047395,-500.0,0.00019731,2]
[318832082,1710411047404,-500.0,0.00019731,2]
[318832083,1710411047414,-500.0,0.00019731,2]
[318832084,1710411047426,-500.0,0.00019731,2]
[318832085,1710411047438,-500.0,0.00019731,2]
[318832086,1710411047449,-500.0,0.00019731,2]
[318832087,1710411047460,-148.23931593,0.00019731,2]
[318832088,1710411047474,-351.76068407,0.00019731,2]
[318832089,1710411047485,-500.0,0.00019731,2]
[318832090,1710411047496,-500.0,0.00019731,2]
[318832091,1710411047507,-42.83064593,0.00019731,2]
[318832092,1710411047519,-457.16935407,0.00019731,2]
[318832093,1710411047528,-423.94,0.00019731,2]
[318832094,1710411047539,-371.02072928,0.00019731,2]
[318832095,1710411047549,-500.0,0.00019731,2]
[318832096,1710411047560,-500.67951837,0.00019731,2]
[318832097,1710411047571,-500.0,0.00019731,2]
[318832098,1710411047583,-500.0,0.00019731,2]
[318832099,1710411047593,-500.0,0.00019731,2]
[318832100,1710411047603,-500.0,0.00019731,2]
[318832101,1710411047615,-500.0,0.00019731,2]
[318832102,1710411047625,-505.64314165,0.00019731,2]
[318832103,1710411047635,-45173.11859155,0.00019732,60]
[318832104,1710411047693,-100054.13360209,0.00019732,60]
[318832107,1710411985362,-31308.75591,0.00019737,60]
[318832108,1710411985547,-783.66712295,0.00025346,120]
[318832109,1710411985556,-682.31486491,0.000258,120]
[318832110,1710411985660,-5020.04786892,0.00027,120]
[318832111,1710411985690,-1926.02399569,0.00027,120]
[318832112,1710411985699,-461.0990924,0.00027,120]
[318832113,1710412057180,-31308.75591,0.00019737,60]
[318832114,1710412057204,-1481.88078353,0.00027,120]
[318832115,1710412057214,-159.674317,0.00027671,65]
[318832116,1710412057224,-159.674317,0.00027671,74]
[318832117,1710412057233,-159.674317,0.00027671,83]
[318832118,1710412057242,-159.674317,0.00027671,92]
[318832119,1710412057252,-159.674317,0.00027671,101]
[318832120,1710412057261,-159.674317,0.00027671,110]
[318832121,1710412057270,-159.674317,0.00027671,119]
[318832122,1710412057279,-200.0,0.0003,120]
[318832123,1710412057289,-2254.95,0.00031,120]
[318832124,1710412057297,-199.24164003,0.00033,120]
[318832125,1710412057307,-11050.0,0.0003415,120]
[318832126,1710412057317,-5000.0,0.000348,120]
[318832127,1710412057326,-16078.69553744,0.00034898,120]
[318832128,1710412157630,3384.91003835,0.00025,120]
[318832187,1710412232697,-639.15143116,0.00017469,2]
[318832440,1710412238879,-2584.37527085,0.00017469,2]
[318832442,1710412238890,-208.46014037,0.0001747,2]
[318832443,1710412238902,-280.71313691,0.0001747,2]
[318832444,1710412238911,-206.84993959,0.00017471,2]
[318832445,1710412238921,-190.65205684,0.00017471,2]
[318832446,1710412238947,-148.05710426,0.00017471,2]
[318832447,1710412238956,-3430.7329,0.00017471,2]
[318832448,1710412238966,-250.0,0.00017497,2]
[318832449,1710412238976,-112.50999574,0.00017539,2]
[318832450,1710412238990,-24787.49000426,0.00017539,2]
[318832451,1710412238999,-401.0830679,0.00017661,2]
[318832452,1710412239008,-212.537628,0.00017859,2]
[318832453,1710412239017,-2000.0,0.0001854,2]
[318832454,1710412239026,-157.684887,0.00019178,2]
[318832455,1710412239037,-166.666666,0.00019178,2]
[318832456,1710412239046,-166.666666,0.00019627,2]
[318832457,1710412239056,-51142.48557228,0.00019632,2]
[318832458,1710412239066,-236.20338182,0.0001973,2]
[318832459,1710412239075,-669.42782765,0.0001973,2]
[318832460,1710412239085,-596.40893399,0.0001973,2]
[318832461,1710412239094,-539.39568638,0.0001973,2]
[318832462,1710412239103,-500.0,0.00019731,2]
[318832463,1710412239112,-500.0,0.00019731,2]
[318832464,1710412239121,-2466.48317478,0.00019731,2]
[318832465,1710412239130,-155.19399249,0.00019732,2]
[318832466,1710412239139,-500.0,0.00019732,2]
[318832467,1710412239148,-500.0,0.00019732,2]
[318832468,1710412239158,-500.0,0.00019732,2]
[318832469,1710412239167,-500.0,0.00019732,2]
[318832470,1710412239178,-500.0,0.00019732,2]
[318832471,1710412239187,-500.0,0.00019732,2]
[318832472,1710412239196,-500.0,0.00019732,2]
[318832473,1710412239206,-500.0,0.00019732,2]
[318832474,1710412239214,-500.0,0.00019732,2]
[318832475,1710412239223,-500.0,0.00019732,2]
[318832476,1710412239232,-500.0,0.00019732,2]
[318832477,1710412239241,-500.0,0.00019732,2]
[318832478,1710412239251,-500.0,0.00019732,2]
[318832479,1710412239260,-500.0,0.00019732,2]
[318832480,1710412239269,-265.42,0.00019732,2]
[318832481,1710412239278,-367380.3238709,0.00019738,60]
[318832518,1710412242886,-338.65,0.00017364,2]
[318832519,1710412243102,-84777.42517876,0.00019738,60]
[318832520,1710412243116,-54732.38423267,0.00019738,60]
[318832522,1710412243129,-1451.19399249,0.00019738,60]
[318832597,1710412248346,-543.01610669,0.00019738,60]
[318832598,1710412248359,-841.1231325,0.00019738,60]
[318832601,1710412268406,-159.674317,0.00027671,61]
[318832602,1710412268416,-159.674317,0.00027671,80]
[318832603,1710412268426,-159.674317,0.00027671,100]
[318832604,1710412268436,-159.674317,0.00027671,120]
[318832605,1710412268447,-5361.302732,0.00034898,120]
[318832606,1710412312985,-8000.0,0.00034898,120]
[318832608,1710412411332,-5000.0,0.00034898,120]
[318832609,1710412451392,649.13818402,0.00025,120]
[318832610,1710412471782,-3000.0,0.00034898,120]
[318832611,1710412490740,-2000.0,0.00034898,120]
[318832612,1710412512500,-965.24683137,0.00034898,120]
[318832613,1710412512510,-1034.75316863,0.0003815,120]
[318832614,1710412539167,-159.820435,0.00027671,65]
[318832615,1710412539177,-159.820435,0.00027671,74]
[318832616,1710412539186,-159.820435,0.00027671,83]
[318832617,1710412539195,-159.820435,0.00027671,92]
[318832618,1710412539204,-159.820435,0.00027671,101]
[318832619,1710412539214,-159.820435,0.00027671,110]
[318832620,1710412539223,-159.820435,0.00027671,119]
[318832621,1710412539233,-881.256955,0.0003815,120]
[318832622,1710412562162,-2500.0,0.0003815,120]
[318832623,1710412631785,-583.98987637,0.0003815,120]
[318832624,1710412631795,-1749.01012363,0.00039768,120]
[318832637,1710413361125,250.0,0.00015029,2]
[318832638,1710413375030,2138.17826972,0.000151,2]
[318832639,1710413396415,623.69243659,0.00015029,2]
[318832659,1710413412391,623.69243659,0.00015029,2]
[318832660,1710413428425,623.69243659,0.00015029,2]
[318832706,1710413432074,-539.54657816,0.00015328,2]
[318832708,1710413432084,-404.7741297,0.00015329,2]
[318832710,1710413432093,-338.7091611,0.0001533,2]
[318832712,1710413432102,-3146.85769747,0.0001533,2]
[318832714,1710413432112,-245.1357578,0.0001533,2]
[318832716,1710413432123,-2599.63259754,0.0001533,2]
[318832718,1710413432136,-318.43859831,0.0001533,2]
[318832721,1710413432147,-2116.47193396,0.0001533,2]
[318832723,1710413432157,-690.82316295,0.0001533,2]
[318832725,1710413432167,-179.83249657,0.0001533,2]
[318832726,1710413432176,-1607.51480522,0.00015331,2]
[318832727,1710413432185,-208.46014037,0.00015331,2]
[318832728,1710413432194,-155.16447434,0.00015331,2]
[318832729,1710413432203,-1081.53934975,0.00015331,2]
[318832730,1710413432213,-524.81639646,0.00015331,2]
[318832731,1710413432223,-3223.52670201,0.00015332,2]
[318832732,1710413432233,-290.71602797,0.00015333,2]
[318832733,1710413432248,-3430.7329,0.00015333,2]
[318832734,1710413432258,-22688.97349826,0.00015333,2]
[318832735,1710413432267,-804.044432,0.00015337,2]
[318832736,1710413432276,-796.2827724,0.00015764,2]
[318832737,1710413432287,-24900.0,0.00016533,2]
[318832738,1710413432296,-1393.882636,0.00016752,2]
[318832739,1710413432305,-2481.7722452,0.00017241,2]
[318832740,1710413432314,-620.02020755,0.00018984,2]
[318832741,1710413432325,-157.684901,0.00019178,2]
[318832742,1710413432338,-166.666666,0.00019178,2]
[318832743,1710413432348,-500.0,0.00019213,2]
[318832744,1710413432357,-166.666666,0.00019627,2]
[318832745,1710413432366,-338.83323476,0.00019631,2]
[318832746,1710413432375,-500.0,0.0001973,2]
[318832747,1710413432385,-500.0,0.0001973,2]
[318832748,1710413432394,-500.0,0.0001973,2]
[318832749,1710413432403,-500.0,0.0001973,2]
[318832750,1710413432413,-500.0,0.0001973,2]
[318832751,1710413432422,-500.25808357,0.0001973,2]
[318832752,1710413432432,-500.0,0.0001973,2]
[318832753,1710413432440,-500.0,0.0001973,2]
[318832754,1710413432450,-503.38146666,0.0001973,2]
[318832755,1710413432459,-500.0,0.0001973,2]
[318832756,1710413432468,-500.0,0.0001973,2]
[318832757,1710413432478,-442.9130801,0.0001973,2]
[318832758,1710413432487,-500.0,0.0001973,2]
[318832759,1710413432496,-500.0,0.0001973,2]
[318832760,1710413432505,-500.0,0.0001973,2]
[318832761,1710413432515,-500.0,0.0001973,2]
[318832762,1710413432524,-500.0,0.0001973,2]
[318832763,1710413432533,-500.0,0.0001973,2]
[318832764,1710413432542,-500.0,0.0001973,2]
[318832765,1710413432552,-341.73165273,0.00019731,2]
[318832766,1710413432561,-500.0,0.00019731,2]
[318832767,1710413432570,-500.22601956,0.00019731,2]